bitfinex/quotes_SOLUSD_20251006
["timestamp","ask_amount","ask_price","bid_price","bid_amount"]
[1759769786435,17.5531317,235.71,235.67,29.74]
[1759769786638,2.60433314,235.7,235.62,4.70283998]
[1759769786845,2.60433314,235.7,235.54,10.61359966]
[1759769786846,1.93433314,235.68,235.63,29.74]
[1759769787031,36.83130545,235.71,235.64,29.74]
[1759769787224,4.24304141,235.68,235.64,30.46]
[1759769787429,4.24304141,235.68,235.65,0.72]
[1759769787929,2.60433314,235.67,235.64,29.74]
[1759769788124,1.93433314,235.67,235.64,29.74]
[1759769788337,1.93433314,235.67,235.65,29.74]
[1759769788530,16.78497808,235.68,235.65,29.74]
[1759769788840,2.60433314,235.66,235.65,29.74]
[1759769789036,2.60433314,235.66,235.62,29.74]
[1759769789341,4.24376167,235.64,235.62,29.74]
[1759769791841,1.93433314,235.65,235.62,29.74]
[1759769792041,1.93433314,235.66,235.62,29.74]
[1759769792843,4.24358158,235.65,235.62,29.74]
[1759769793146,4.24358158,235.65,235.62,30.46]
[1759769793937,4.24358158,235.65,235.63,0.72]
[1759769794647,4.24358158,235.65,235.62,29.74]
[1759769794853,4.24358158,235.65,235.62,30.46]
[1759769795025,1.93433314,235.64,235.63,29.74]
[1759769795229,14.85253553,235.65,235.63,29.74]
[1759769795427,1.93433314,235.64,235.63,29.74]
[1759769795931,2.63433314,235.64,235.59,29.74]
[1759769796132,1.93433314,235.61,235.59,29.74]
[1759769796937,4.24448217,235.6,235.59,29.74]
[1759769797148,6.17881531,235.6,235.59,29.74]
[1759769799654,1.93433314,235.65,235.59,30.43]
[1759769799858,10.60940417,235.64,235.6,0.69]
[1759769800055,10.60940417,235.64,235.61,0.69]
[1759769800258,6.17773465,235.66,235.62,0.69]
[1759769800455,6.17773465,235.66,235.63,0.69]
[1759769800958,0.7,235.68,235.59,33.98460319]
[1759769800959,4.24305662,235.68,235.59,33.98460319]
[1759769801155,4.24305662,235.68,235.64,0.69]
[1759769801337,14.8493848,235.7,235.65,0.69]
[1759769801535,16.78371794,235.7,235.65,30.43]
[1759769801744,16.78371794,235.7,235.66,0.69]
[1759769802062,4.34250208,235.71,235.66,0.69]
[1759769802367,5.04250208,235.71,235.66,0.69]
[1759769802573,1.93433314,235.69,235.65,29.74]
[1759769802738,14.94875552,235.71,235.65,30.43]
[1759769802941,1.93433314,235.69,235.65,30.43]
[1759769803153,1.93433314,235.69,235.66,0.69]
[1759769803329,14.94875552,235.71,235.66,0.69]
[1759769803653,4.24304141,235.68,235.65,29.74]
[1759769803833,4.24304141,235.68,235.65,30.43]
[1759769804241,14.85064494,235.68,235.65,30.43]
[1759769804435,14.85064494,235.68,235.65,29.74]
[1759769804639,14.85064494,235.68,235.66,0.69]
[1759769805333,10.60760353,235.68,235.66,0.69]
[1759769807070,10.60760353,235.68,235.65,29.74]
[1759769807252,10.60760353,235.68,235.65,30.43]
[1759769807442,14.85064494,235.68,235.65,29.74]
[1759769807881,2.63433314,235.67,235.56,25.50283998]
[1759769808039,1.93433314,235.64,235.58,0.66]
[1759769809246,1.93433314,235.63,235.58,0.66]
[1759769809459,1.93433314,235.63,235.59,0.66]
[1759769809766,4.24412189,235.62,235.6,0.66]
[1759769811559,10.60988374,235.63,235.6,0.66]
[1759769812264,4.24376167,235.64,235.61,0.66]
[1759769812482,4.24376167,235.64,235.57,29.74]
[1759769812759,4.24376167,235.64,235.62,0.66]
[1759769814138,14.85253553,235.65,235.6,0.66]
[1759769814436,16.78686867,235.65,235.6,0.66]
[1759769814656,17.45686867,235.65,235.6,0.66]
[1759769814976,4.24290432,235.69,235.61,0.66]
[1759769815269,14.85005778,235.69,235.62,29.74]
[1759769815559,14.85005778,235.69,235.63,0.66]
[1759769817043,10.60715346,235.69,235.63,0.66]
[1759769817942,1.93433314,235.66,235.59,0.66]
[1759769818147,0.67,235.65,235.6,29.76]
[1759769818348,0.67,235.65,235.6,30.42]
[1759769818653,0.67,235.67,235.61,0.66]
[1759769818848,1.93433314,235.66,235.61,0.66]
[1759769819048,14.85253553,235.65,235.61,0.66]
[1759769820679,1.93433314,235.62,235.54,0.66]
[1759769820852,36.07044344,235.65,235.55,29.76]
[1759769820853,1.93433314,235.6,235.55,29.76]
[1759769821045,14.85631817,235.59,235.55,29.76]
[1759769821250,14.85631817,235.59,235.55,30.42]
[1759769821457,14.85631817,235.59,235.55,29.76]
[1759769821770,14.85631817,235.59,235.56,0.66]
[1759769823067,10.61165584,235.59,235.56,0.66]
[1759769823667,10.61165584,235.59,235.55,29.76]
[1759769823859,11.28165584,235.59,235.55,29.76]
[1759769825003,13.21598898,235.59,235.55,29.76]
[1759769825169,17.46065131,235.59,235.55,29.76]
[1759769825371,16.79065131,235.59,235.55,30.42]
[1759769826083,14.85631817,235.59,235.55,30.42]
[1759769826471,14.85631817,235.59,235.56,0.66]
[1759769827355,10.61165584,235.59,235.55,29.76]
[1759769827559,10.61165584,235.59,235.56,0.66]
[1759769831679,4.24448217,235.6,235.56,0.66]
[1759769832077,4.24448217,235.6,235.57,0.66]
[1759769832517,4.24448217,235.6,235.58,0.66]
[1759769832982,4.24448217,235.6,235.56,0.66]
[1759769833181,14.85471828,235.62,235.57,0.66]
[1759769833376,0.67,235.61,235.54,0.66]
[1759769833602,0.67,235.61,235.55,29.74]
[1759769833894,0.67,235.61,235.55,30.4]
[1759769834388,17.87953655,235.62,235.55,29.74]
[1759769834579,17.87953655,235.62,235.56,0.66]
[1759769835078,14.85471828,235.62,235.56,0.66]
[1759769835690,17.87953655,235.62,235.56,0.66]
[1759769836385,14.85471828,235.62,235.56,0.66]
[1759769836582,21.21790791,235.65,235.56,4.90515814]
[1759769836583,4.24393867,235.64,235.56,4.90515814]
[1759769836787,4.24393867,235.64,235.57,0.66]
[1759769837091,4.24412189,235.62,235.55,30.4]
[1759769837392,4.91412189,235.62,235.55,30.4]
[1759769837688,15.52442661,235.62,235.56,0.66]
[1759769837890,4.24412189,235.62,235.56,0.66]
[1759769839586,4.24376167,235.64,235.56,4.90518054]
[1759769839891,4.24376167,235.64,235.57,0.72]
[1759769840092,15.56316584,235.64,235.57,0.72]
[1759769841792,15.56316584,235.64,235.55,30.46]
[1759769841999,3.73481827,235.63,235.55,30.46]
[1759769842204,0.71,235.62,235.55,30.46]
[1759769842385,0.71,235.62,235.56,0.72]
[1759769842903,3.02481827,235.63,235.56,0.72]
[1759769843898,4.24412189,235.62,235.56,0.72]
[1759769844087,4.24412189,235.62,235.57,29.74]
[1759769844282,4.24412189,235.62,235.58,0.72]
[1759769844998,14.85442661,235.62,235.57,29.74]
[1759769845209,15.56442661,235.62,235.57,30.46]
[1759769845579,14.85442661,235.62,235.57,29.74]
[1759769845890,4.24448217,235.6,235.57,29.74]
[1759769846085,4.24448217,235.6,235.58,0.72]
[1759769846287,4.24394177,235.63,235.57,29.74]
[1759769846498,4.24394177,235.63,235.59,0.72]
[1759769846803,15.5637962,235.63,235.57,30.46]
[1759769848005,14.8537962,235.63,235.58,0.72]
[1759769848206,14.8537962,235.63,235.59,0.72]
[1759769848586,14.8537962,235.63,235.57,29.74]
[1759769848807,14.8537962,235.63,235.57,30.46]
[1759769854798,0.71,235.62,235.58,29.74]
[1759769854997,0.71,235.61,235.58,29.74]
[1759769855214,3.02481827,235.62,235.58,29.74]
[1759769855388,0.71,235.6,235.58,29.74]
[1759769855592,3.73481827,235.62,235.58,29.74]
[1759769856189,0.68,235.62,235.58,29.74]
[1759769856394,14.85505708,235.61,235.58,29.74]
[1759769857017,14.85505708,235.61,235.58,30.46]
[1759769857525,14.85505708,235.61,235.58,29.74]
[1759769858011,0.68,235.6,235.54,4.70283998]
[1759769858213,0.68,235.59,235.55,29.74]
[1759769858813,3.70481827,235.59,235.55,29.74]
[1759769859014,3.70481827,235.59,235.55,30.46]
[1759769859209,17.87987535,235.61,235.56,0.72]
[1759769859407,17.87987535,235.61,235.55,29.74]
[1759769859723,17.87987535,235.61,235.57,0.72]
[1759769860026,14.85505708,235.61,235.55,29.74]
[1759769860234,14.85505708,235.61,235.58,0.72]
[1759769860518,14.85505708,235.61,235.59,0.72]
[1759769860699,14.85505708,235.61,235.56,0.72]
[1759769861201,14.85505708,235.61,235.57,0.72]
[1759769864717,15.53505708,235.61,235.55,34.44283998]
[1759769864925,15.53505708,235.61,235.55,30.46]
[1759769865217,14.85505708,235.61,235.54,4.70283998]
[1759769865416,0.68,235.6,235.55,34.44283998]
[1759769865616,3.02481827,235.6,235.56,0.72]
[1759769865814,14.85505708,235.61,235.55,34.44283998]
[1759769865815,14.85505708,235.61,235.57,0.72]
[1759769866127,14.85505708,235.61,235.55,34.44283998]
[1759769866424,14.85505708,235.61,235.56,0.72]
[1759769866806,10.61075506,235.61,235.57,0.72]
[1759769867125,10.61075506,235.61,235.58,0.72]
[1759769867502,10.61075506,235.61,235.59,0.72]
[1759769867816,4.24394177,235.63,235.6,0.72]
[1759769868607,14.85316584,235.64,235.6,0.72]
[1759769868802,14.85316584,235.64,235.6,30.46]
[1759769869029,4.24376167,235.64,235.61,0.66]
[1759769869820,4.24376167,235.64,235.6,29.74]
[1759769870020,0.69,235.63,235.6,29.74]
[1759769870202,17.87798411,235.64,235.6,29.74]
[1759769870598,4.24412189,235.62,235.6,29.74]
[1759769870909,0.69,235.61,235.58,29.74]
[1759769871108,17.87924488,235.62,235.58,30.4]
[1759769872226,17.87924488,235.62,235.59,0.66]
[1759769872428,17.87924488,235.62,235.6,0.66]
[1759769872429,14.85442661,235.62,235.6,0.66]
[1759769872633,4.24394177,235.63,235.58,29.74]
[1759769872808,4.24394177,235.63,235.59,0.66]
[1759769873009,4.24394177,235.63,235.6,0.66]
[1759769873307,14.8537962,235.63,235.6,0.66]
[1759769875540,14.8537962,235.63,235.61,0.66]
[1759769875723,4.24394177,235.63,235.62,0.66]
[1759769876113,4.24394177,235.63,235.58,29.74]
[1759769876329,4.24394177,235.63,235.6,0.66]
[1759769876531,4.24394177,235.63,235.61,0.66]
[1759769876710,4.24394177,235.63,235.62,0.66]
[1759769877720,4.24358158,235.65,235.62,0.66]
[1759769878037,4.24358158,235.65,235.63,30.4]
[1759769878743,14.8521677,235.66,235.63,30.4]
[1759769879843,14.8521677,235.66,235.64,0.66]
[1759769880206,14.8521677,235.66,235.65,0.66]
[1759769880410,4.24340151,235.66,235.65,0.66]
[1759769880827,4.24304141,235.68,235.65,0.66]
[1759769881964,14.85064494,235.68,235.63,30.4]
[1759769882164,17.87546321,235.68,235.64,0.66]
[1759769882859,0.69,235.67,235.63,29.74]
[1759769883035,0.69,235.67,235.64,29.74]
[1759769883241,17.87546321,235.68,235.64,29.74]
[1759769883556,18.56546321,235.68,235.65,29.74]
[1759769884156,17.87546321,235.68,235.65,29.74]
[1759769885652,3.02481827,235.66,235.61,0.66]
[1759769885855,3.02481827,235.66,235.62,30.4]
[1759769886161,3.02481827,235.67,235.63,30.38]
[1759769886337,3.02481827,235.67,235.63,29.72]
[1759769886535,3.02481827,235.67,235.63,30.38]
[1759769886931,14.85064494,235.68,235.63,30.38]
[1759769887132,14.85190528,235.66,235.63,30.38]
[1759769887351,14.85190528,235.66,235.64,0.66]
[1759769887752,14.85190528,235.66,235.65,0.66]
[1759769888436,14.85190528,235.66,235.63,30.38]
[1759769888654,14.85190528,235.66,235.64,0.66]
[1759769889173,4.24322145,235.67,235.65,0.66]
[1759769889475,0.1,235.71,235.65,0.66]
[1759769889476,14.8493848,235.7,235.65,0.66]
[1759769889636,14.8493848,235.7,235.66,0.66]
[1759769890237,14.8493848,235.7,235.63,29.72]
[1759769890438,4.24268137,235.7,235.64,0.66]
[1759769897868,14.8493848,235.7,235.64,0.66]
[1759769898053,15.5293848,235.7,235.64,0.66]
[1759769899363,14.8493848,235.7,235.64,0.66]
[1759769902474,1.93408405,235.68,235.64,20.8]
[1759769902775,0.68,235.69,235.65,29.72]
[1759769902976,2.61408405,235.69,235.65,29.72]
[1759769903283,0.68,235.69,235.65,29.72]
[1759769903448,16.78346885,235.7,235.65,30.42]
[1759769903769,14.8493848,235.7,235.65,30.42]
[1759769903978,0.68,235.69,235.65,30.42]
[1759769904281,0.68,235.69,235.65,29.72]
[1759769905082,4.24304141,235.68,235.65,29.72]
[1759769905464,4.24304141,235.68,235.65,30.42]
[1759769906382,14.8493848,235.7,235.65,30.42]
[1759769906584,14.8493848,235.7,235.66,0.7]
[1759769907078,15.5293848,235.7,235.66,0.7]
[1759769907285,15.5293848,235.7,235.65,29.72]
[1759769907577,15.5293848,235.7,235.65,30.42]
[1759769907970,15.5293848,235.7,235.66,0.7]
[1759769908164,14.8493848,235.7,235.66,0.7]
[1759769909059,14.8493848,235.7,235.65,29.72]
[1759769909285,4.24268137,235.7,235.67,0.7]
[1759769909577,4.24268137,235.7,235.68,0.7]
[1759769910076,4.24268137,235.7,235.65,29.72]
[1759769910077,4.24268137,235.7,235.69,0.7]
[1759769910280,0.1,235.71,235.69,0.7]
[1759769910576,0.1,235.71,235.7,29.72]
[1759769910768,0.1,235.71,235.7,30.42]
[1759769913055,0.1,235.71,235.7,34.66191699]
[1759769916784,0.1,235.71,235.7,30.42]
[1759769917760,0.1,235.71,235.7,30.4]
[1759769922616,0.1,235.71,235.7,34.64268137]
[1759769923108,0.1,235.71,235.7,30.4]
[1759769926983,0.1,235.71,235.7,20.8]
[1759769927202,4.34258232,235.71,235.7,50.5]
[1759769928702,4.34258232,235.71,235.7,20.8]
[1759769928997,4.34258232,235.71,235.7,50.5]
[1759769929706,0.1,235.71,235.7,50.5]
[1759769930198,0.1,235.71,235.7,51.21]
[1759769930881,0.1,235.71,235.7,50.5]
[1759769932280,0.1,235.71,235.7,51.21]
[1759769933083,0.1,235.71,235.7,50.5]
[1759769934579,0.1,235.71,235.7,20.8]
[1759769934806,0.1,235.71,235.7,50.5]
[1759769935602,0.1,235.71,235.7,51.21]
[1759769936601,0.1,235.71,235.7,55.45268137]
[1759769938998,0.1,235.71,235.7,51.21]
[1759769940084,0.1,235.71,235.7,50.5]
[1759769940600,0.1,235.71,235.7,51.21]
[1759769944606,4.0117999,235.75,235.7,51.21]
[1759769944908,4.0117999,235.75,235.71,0.71]
[1759769945115,0.1,235.83,235.72,30.41]
[1759769945291,6.17460648,235.82,235.73,29.68]
[1759769945486,12.53751039,235.81,235.73,30.39]
[1759769946102,14.84308735,235.8,235.73,30.39]
[1759769948088,14.84308735,235.8,235.74,0.71]
[1759769948307,14.84308735,235.8,235.75,29.68]
[1759769948488,14.84308735,235.8,235.75,30.39]
[1759769949415,14.84308735,235.8,235.76,0.71]
[1759769949711,14.84308735,235.8,235.77,29.68]
[1759769950015,14.84308735,235.8,235.78,29.68]
[1759769950796,16.7771714,235.8,235.78,29.68]
[1759769951102,17.86319725,235.8,235.74,0.71]
[1759769951294,17.86319725,235.8,235.75,29.68]
[1759769951488,3.0201099,235.78,235.75,30.39]
[1759769951696,3.0201099,235.78,235.76,0.71]
[1759769952089,14.84308735,235.8,235.76,0.71]
[1759769952497,3.0201099,235.78,235.76,0.71]
[1759769953325,4.24142172,235.77,235.75,29.68]
[1759769953502,4.24142172,235.77,235.75,30.39]
[1759769954011,7.26153162,235.77,235.72,4.70283998]
[1759769954313,7.26153162,235.77,235.73,29.68]
[1759769954494,3.0201099,235.77,235.73,29.68]
[1759769954691,4.24132127,235.78,235.74,0.71]
[1759769955011,7.26143117,235.78,235.74,0.71]
[1759769955314,7.26143117,235.78,235.75,0.71]
[1759769955491,7.26143117,235.78,235.76,29.68]
[1759769956208,7.260992,235.8,235.77,0.71]
[1759769956405,7.260992,235.8,235.76,29.68]
[1759769956406,4.2408821,235.8,235.78,0.71]
[1759769956604,7.260992,235.8,235.79,29.68]
[1759769958703,4.2408821,235.8,235.79,29.68]
[1759769958905,7.260992,235.8,235.79,29.68]
[1759769959518,4.24069541,235.82,235.79,30.35]
[1759769959714,3.0201099,235.81,235.8,0.67]
[1759769959895,3.0201099,235.81,235.79,29.68]
[1759769960700,3.0201099,235.81,235.75,0.67]
[1759769961008,3.0201099,235.78,235.76,29.68]
[1759769961209,3.0201099,235.78,235.77,0.67]
[1759769961402,7.26135173,235.78,235.77,0.67]
[1759769961601,7.26135173,235.78,235.77,30.35]
[1759769962304,7.26135173,235.78,235.77,0.67]
[1759769962640,7.26135173,235.78,235.77,30.35]
[1759769962923,7.26135173,235.78,235.77,0.67]
[1759769963116,17.86445631,235.78,235.74,5.37283998]
[1759769963311,14.84434641,235.78,235.75,29.68]
[1759769963620,3.0201099,235.77,235.76,0.67]
[1759769963922,3.0201099,235.77,235.75,29.68]
[1759769964109,3.0201099,235.77,235.75,30.35]
[1759769964506,14.89245791,235.81,235.76,30.35]
[1759769964707,3.0201099,235.77,235.76,30.35]
[1759769965008,3.0201099,235.77,235.76,29.68]
[1759769965220,7.26153162,235.77,235.74,0.67]
[1759769965402,7.26153162,235.77,235.75,29.68]
[1759769965602,7.26153162,235.77,235.76,0.67]
[1759769966406,7.26153162,235.77,235.75,29.68]
[1759769966598,7.26153162,235.77,235.75,30.35]
[1759769967119,7.26153162,235.77,235.75,29.68]
[1759769967298,7.26153162,235.77,235.76,0.67]
[1759769967501,7.26153162,235.77,235.74,0.67]
[1759769967808,7.26153162,235.77,235.75,30.35]
[1759769968015,7.26153162,235.77,235.76,0.67]
[1759769968325,3.0201099,235.77,235.76,30.35]
[1759769968622,3.0201099,235.77,235.76,29.68]
[1759769969031,3.0201099,235.77,235.75,0.67]
[1759769969324,3.0201099,235.77,235.76,29.68]
[1759769969726,7.26153162,235.77,235.76,29.68]
[1759769970327,7.26153162,235.77,235.76,30.35]
[1759769970902,7.26153162,235.77,235.76,0.67]
[1759769971101,7.26153162,235.77,235.76,30.33]
[1759769973120,7.26153162,235.77,235.75,0.67]
[1759769973322,4.24142172,235.77,235.76,29.66]
[1759769974013,4.24124183,235.78,235.76,30.33]
[1759769974224,4.24124183,235.78,235.76,29.66]
[1759769975204,4.24124183,235.78,235.71,4.70283998]
[1759769975205,3.0701099,235.77,235.71,4.70283998]
[1759769975515,3.0201099,235.75,235.74,29.66]
[1759769976098,7.26189144,235.75,235.74,29.66]
[1759769976322,4.24178154,235.75,235.74,29.66]
[1759769977006,4.24178154,235.75,235.74,30.32]
[1759769977656,10.60175565,235.81,235.74,30.32]
[1759769977826,12.72885419,235.82,235.75,0.66]
[1759769978144,17.86256781,235.81,235.76,29.66]
[1759769978440,17.86256781,235.81,235.74,0.66]
[1759769978441,14.84245791,235.81,235.74,0.66]
[1759769978610,3.0201099,235.78,235.75,29.66]
[1759769979016,14.84245791,235.81,235.76,0.66]
[1759769979353,30.591422,235.81,235.77,0.66]
[1759769979513,30.591422,235.81,235.72,4.70283998]
[1759769979514,27.5713121,235.81,235.78,30.32]
[1759769979711,3.0201099,235.79,235.74,0.66]
[1759769979914,3.0201099,235.78,235.75,29.66]
[1759769980116,4.24142172,235.77,235.75,30.32]
[1759769980416,4.2408821,235.8,235.76,0.66]
[1759769980617,4.2408821,235.8,235.77,0.66]
[1759769980825,4.2408821,235.8,235.78,0.66]
[1759769981236,4.2408821,235.8,235.75,29.66]
[1759769981546,7.260992,235.8,235.76,0.66]
[1759769981945,3.0201099,235.79,235.77,0.66]
[1759769982136,4.24124183,235.78,235.77,0.66]
[1759769982344,7.26135173,235.78,235.73,5.36283998]
[1759769982525,4.24124183,235.78,235.74,29.66]
[1759769982859,4.24124183,235.78,235.75,0.66]
[1759769983725,0.1,235.83,235.78,20.8]
[1759769984029,0.1,235.83,235.79,30.32]
[1759769984223,14.84185072,235.82,235.77,0.66]
[1759769984416,14.84185072,235.82,235.78,0.66]
[1759769984618,14.84185072,235.82,235.79,30.32]
[1759769985134,14.84185072,235.82,235.79,0.66]
[1759769985338,14.84185072,235.82,235.8,29.66]
[1759769985934,14.84185072,235.82,235.8,30.32]
[1759769986131,14.84185072,235.82,235.8,29.66]
[1759769986338,14.84185072,235.82,235.79,29.66]
[1759769986641,14.84185072,235.82,235.79,30.32]
[1759769987015,14.84185072,235.82,235.8,0.66]
[1759769987220,14.84185072,235.82,235.79,29.66]
[1759769987420,14.84185072,235.82,235.79,30.32]
[1759769987618,17.86196062,235.82,235.76,0.66]
[1759769987829,3.0201099,235.81,235.77,29.66]
[1759769988030,14.84308735,235.8,235.77,30.32]
[1759769989328,14.84308735,235.8,235.77,29.66]
[1759769989741,14.84308735,235.8,235.77,30.32]
[1759769989951,13.62231515,235.8,235.75,0.66]
[1759769990254,13.62231515,235.8,235.75,30.32]
[1759769990449,13.62231515,235.8,235.76,0.66]
[1759769990833,3.0201099,235.78,235.75,29.66]
[1759769991144,3.0201099,235.79,235.75,30.32]
[1759769991352,3.0201099,235.79,235.76,0.66]
[1759769991552,3.0201099,235.78,235.76,0.66]
[1759769991847,4.24142172,235.77,235.73,4.70283998]
[1759769992059,4.24142172,235.77,235.74,30.32]
[1759769992237,17.86508593,235.77,235.75,0.66]
[1759769993137,17.86508593,235.77,235.76,0.66]
[1759769994750,17.86508593,235.77,235.74,30.32]
[1759769994954,3.0201099,235.76,235.74,30.32]
[1759769995153,7.26171152,235.76,235.75,0.66]
[1759769999265,17.86571559,235.76,235.72,30.32]
[1759769999555,3.0201099,235.74,235.72,30.32]
[1759769999736,3.0201099,235.73,235.7,4.70283998]
[1759769999940,3.0201099,235.71,235.66,4.70283998]
[1759770000252,12.77939429,235.72,235.64,5.36283998]
[1759770000456,3.0201099,235.66,235.64,5.36283998]
[1759770000654,3.0201099,235.65,235.64,4.70283998]
[1759770000851,3.0201099,235.65,235.63,4.70283998]
[1759770001051,3.0201099,235.65,235.64,0.66]
[1759770001254,7.26369148,235.65,235.64,0.66]
[1759770002279,7.26369148,235.65,235.62,0.66]
[1759770002280,17.87264543,235.65,235.62,0.66]
[1759770002572,17.87264543,235.65,235.63,0.66]
[1759770002753,17.87264543,235.65,235.61,29.66]
[1759770002945,17.87264543,235.65,235.63,0.66]
[1759770003140,3.0201099,235.65,235.64,0.66]
[1759770003340,3.0201099,235.65,235.62,0.66]
[1759770003540,3.0201099,235.65,235.63,0.66]
[1759770003762,14.85064494,235.68,235.64,0.66]
[1759770003970,3.0201099,235.67,235.65,0.66]
[1759770004179,3.0201099,235.67,235.66,0.66]
[1759770004965,3.0201099,235.67,235.64,0.66]
[1759770005199,3.0201099,235.66,235.62,0.66]
[1759770005342,0.05,235.7,235.63,0.66]
[1759770005343,3.0201099,235.65,235.63,0.66]
[1759770005542,0.05,235.7,235.64,0.66]
[1759770005750,3.0201099,235.65,235.61,29.66]
[1759770005970,3.0201099,235.65,235.63,0.66]
[1759770006462,3.0201099,235.65,235.64,0.66]
[1759770006771,3.0201099,235.66,235.64,0.66]
[1759770006971,36.0612617,235.71,235.65,0.66]
[1759770006972,3.0201099,235.67,235.65,0.66]
[1759770007153,4.24340151,235.66,235.65,0.66]
[1759770007361,4.24340151,235.66,235.61,29.66]
[1759770007552,21.21250689,235.71,235.65,20.8]
[1759770007553,4.24250137,235.71,235.65,20.8]
[1759770007873,12.73101487,235.79,235.69,20.8]
[1759770008046,3.0201099,235.77,235.7,0.66]
[1759770008568,14.84308735,235.8,235.71,29.66]
[1759770008767,3.0201099,235.79,235.72,0.66]
[1759770008977,3.0201099,235.73,235.69,0.66]
[1759770009157,3.0201099,235.73,235.66,29.68]
[1759770009158,4.24286138,235.69,235.66,29.68]
[1759770009362,3.0201099,235.68,235.66,30.34]
[1759770009778,3.0201099,235.68,235.65,29.68]
[1759770009970,3.0201099,235.66,235.64,29.68]
[1759770010268,3.0201099,235.67,235.64,30.34]
[1759770010480,14.85001484,235.69,235.65,0.66]
[1759770010774,14.85001484,235.69,235.66,0.66]
[1759770010974,3.0201099,235.68,235.65,29.68]
[1759770011280,4.24322145,235.67,235.66,0.66]
[1759770011478,10.60537887,235.73,235.64,29.7]
[1759770011671,1.93476951,235.71,235.65,0.66]
[1759770013276,4.24268137,235.7,235.65,0.66]
[1759770014273,4.24268137,235.7,235.66,30.36]
[1759770014580,4.24268137,235.7,235.67,0.66]
[1759770014762,4.24268137,235.7,235.68,0.66]
[1759770014963,4.24268137,235.7,235.69,0.66]
[1759770015383,12.53983128,235.74,235.69,0.66]
[1759770015384,14.84749501,235.73,235.69,0.66]
[1759770015579,14.84749501,235.73,235.66,29.7]
[1759770015580,16.78226452,235.73,235.7,0.66]
[1759770015876,16.78226452,235.73,235.71,0.66]
[1759770016374,1.93476951,235.72,235.69,29.7]
[1759770016578,1.93476951,235.71,235.69,29.7]
[1759770017372,4.24268137,235.7,235.69,30.36]
[1759770018657,14.89560569,235.76,235.69,30.36]
[1759770018855,1.93476951,235.72,235.69,30.36]
[1759770019054,1.93476951,235.73,235.69,30.36]
[1759770020382,1.93476951,235.72,235.69,0.66]
[1759770021168,1.93476951,235.7,235.66,0.7]
[1759770021369,1.93476951,235.68,235.65,29.7]
[1759770021565,1.93476951,235.68,235.63,0.7]
[1759770021784,1.93476951,235.68,235.64,0.7]
[1759770021983,1.93476951,235.68,235.65,0.7]
[1759770022286,1.93476951,235.7,235.66,0.7]
[1759770022785,14.85001484,235.69,235.67,0.7]
[1759770022976,1.93476951,235.74,235.68,29.7]
[1759770023295,16.78100492,235.75,235.69,0.7]
[1759770023496,1.93476951,235.73,235.69,0.7]
[1759770023886,4.24178154,235.75,235.7,0.7]
[1759770024190,1.93476951,235.74,235.68,29.7]
[1759770024392,1.93476951,235.74,235.69,0.7]
[1759770024600,14.84623541,235.75,235.7,0.7]
[1759770024902,14.84623541,235.75,235.66,0.7]
[1759770024903,1.93476951,235.71,235.66,0.7]
[1759770025086,1.93476951,235.7,235.66,30.42]
[1759770025391,10.60445387,235.75,235.64,29.72]
[1759770025392,1.93476951,235.67,235.64,29.72]
[1759770025569,1.93476951,235.67,235.64,30.42]